Cogmind - Beta 13 X1 @@@ ROGUE MODE // 2023.10.08 @ 14:36:55 Player: maxwell Result: Destroyed by G-47 Trooper with Particle Gun Performance ------------- Evolutions (0) 0 Regions Visited (3) 600 Robots Destroyed (25) 125 Value Destroyed (732) 732 Prototype IDs (0) 0 Alien Tech Used (0) 0 Bonus (0) 0 TOTAL SCORE: 1457 Bonus ------- None Cogmind --------- Core Integrity 0/250 Matter 206/300 Energy 100/100 System Corruption 0% Temperature Cool (9) Movement Treading (240) Ox1 Location -10/Subcaves Parts ------- > --- POWER (1) -------- Subdweller Power Source > --- PROPULSION (2) --- Light Treads Light Treads > --- UTILITY (2) ------ High-capacity Storage Unit Structural Scanner > --- WEAPON (2) ------- Light Assault Rifle Subdweller Machine Gun > --- INVENTORY (20) --- Light Treads Light Treads Light Treads Subdweller Monowheel Improved Signal Interpreter Improved Terrain Scanner Improved Terrain Scan Processor Improved Propulsion Shielding Long-range Tractor Beam Improved Trap Extractor (0/6) Heavy Particle Cannon Light Assault Rifle Light Assault Rifle Light Assault Rifle Peak State ------------ > --- POWER ------------ Deuterium Engine > --- PROPULSION ------- Light Treads Light Treads > --- UTILITY ---------- High-capacity Storage Unit Structural Scanner > --- WEAPON ----------- Assault Rifle Light Assault Rifle > --- INVENTORY -------- Light Treads Light Treads Light Treads Light Treads Improved Signal Interpreter Improved Terrain Scanner Improved Terrain Scan Processor Improved Propulsion Shielding Long-range Tractor Beam Improved Trap Extractor Heavy Particle Cannon Light Assault Rifle Light Assault Rifle Light Assault Rifle Light Cannon [Rating: 12] Favorites ----------- Power Deuterium Engine Engine Deuterium Engine Propulsion Light Treads Treads Light Treads Leg Aluminum Leg Utility High-capacity Storage Unit Device Structural Scanner Storage High-capacity Storage Unit Weapon Assault Rifle Ballistic Gun Assault Rifle Ballistic Cannon Light Cannon Build | -11 -10 -10 -10 ------- Run | Jun Mat Min Sub Slots Evolved . | . . . . Power . | . . . . Propulsion . | . . . . Utility . | . . . . Weapon . | . . . . Parts Attached 15 | . 5 5 5 Power 3 | . 1 1 1 Engine 3 | . 1 1 1 Core . | . . . . Reactor . | . . . . Propulsion 3 | . . 2 1 Treads 3 | . . 2 1 Leg . | . . . . Wheel . | . . . . Hover . | . . . . Flight . | . . . . Utility 2 | . 2 . . Device 1 | . 1 . . Storage 1 | . 1 . . Processor . | . . . . Hackware . | . . . . Protection . | . . . . Artifact . | . . . . Weapon 7 | . 2 2 3 Energy Gun . | . . . . Energy Cannon . | . . . . Ballistic Gun 6 | . 2 1 3 Ballistic Cannon 1 | . . 1 . Launcher . | . . . . Special Weapon . | . . . . Impact Weapon . | . . . . Slashing Weapon . | . . . . Piercing Weapon . | . . . . Special Melee Weapon . | . . . . Unidentified Prototypes . | . . . . Parts Lost 8 | . 2 2 4 Power 3 | . 1 1 1 Propulsion 1 | . . . 1 Utility . | . . . . Weapon 4 | . 1 1 2 Highest Loss Streak 2 | . 1 2 2 To Critical Strikes . | . . . . Average Slot Usage (%) 96 | . 89 100 99 Engine 13 | . 14 14 13 Treads 16 | . . 23 28 Leg 11 | . 28 4 . Device 10 | . 4 14 14 Storage 14 | . 14 14 14 Ballistic Gun 21 | . 28 16 21 Ballistic Cannon 6 | . . 11 6 Naked Turns . | . . . . Heaviest Build 55 | 14 49 55 55 Greatest Support 40 | 20 20 40 40 Greatest Overweight (x) 2 | . 2 2 1 Average Overweight (x) 1 | . . 1 1 Largest Inventory Capacity 20 | . 20 20 20 Average Capacity 18 | . 15 20 20 Most Carried 19 | . 11 19 15 Average Carried 12 | . 8 15 13 Final Capacity 20 | 8 20 20 20 Final Carried 15 | 6 11 15 14 Class Distribution -------------------- 86% | Mutant 13% | Scavenger-Mutant Dominant Class ---------------- Mutant | -10/Materials Mutant | -10/Mines Scavenger-Mutant | -10/Subcaves Resources | -11 -10 -10 -10 ----------- Run | Jun Mat Min Sub Matter Collected 664 | 200 318 57 89 Remotely . | . . . . Salvage Created 866 | . 612 84 170 Parts 56 | . 40 3 13 Haulers Intercepted 2 | . 2 . . Recyclers Shooed 1 | . . 1 . Parts Field Recycled . | . . . . Retrieved Matter . | . . . . Parts Self-Destructed . | . . . . Prevented . | . . . . Kills | -11 -10 -10 -10 ------- Run | Jun Mat Min Sub Combat Hostiles Destroyed 21 | . 13 2 6 Guns 18 | . 13 2 3 Cannons 3 | . . . 3 Classes Destroyed 6 | . 4 1 1 Worker 1 | . . 1 . Hauler 2 | . 2 . . Watcher 1 | . 1 . . Swarmer 3 | . 3 . . Grunt 13 | . 10 2 1 Subdweller 5 | . . . 5 Best Kill Streak 3 | . 3 2 2 Combat Bots Only 3 | . 3 2 2 Max Kills in Single Turn 2 | . 2 1 1 Gunslinging 1 | . 1 . . Exploded . | . . . . Melee . | . . . . Uniques/NPCs Destroyed . | . . . . Combat | -11 -10 -10 -10 -------- Run | Jun Mat Min Sub Damage Taken 1367 | . 530 263 574 Core 256 | . 101 87 68 Absorbed by Shields . | . . . . Core Remaining (%) 100 | 100 . . . Volleys Fired 92 | . 49 10 33 Largest 2 | . 2 2 2 Hottest 65 | . 40 40 65 Shots Fired 176 | . 98 20 58 Gun 159 | . 98 20 41 Cannon 17 | . . . 17 Launcher . | . . . . Special . | . . . . Kinetic 176 | . 98 20 58 Thermal . | . . . . Explosive . | . . . . Electromagnetic . | . . . . Robot Hit Streak 36 | . 10 7 36 Robot Miss Streak 4 | . 4 2 1 Penetration Max . | . . . . Secondary Targets 4 | . 3 . 1 Max Gunslinging Chain 1 | . 1 . 1 Shots Hit Robots 122 | . 69 14 39 Core Hits 49 | . 29 6 14 Critical Kills 1 | . 1 . . Critical Parts Destroyed 1 | . 1 . . Critical Strikes 3 | . 2 . 1 Destroy 3 | . 2 . 1 Melee Attacks . | . . . . Impact . | . . . . Slashing . | . . . . Piercing . | . . . . Sneak Attacks . | . . . . Combat Hostiles . | . . . . Follow-up Attacks . | . . . . Damage Inflicted 1624 | . 863 185 576 Guns 1352 | . 855 161 336 Cannons 240 | . . . 240 Explosions . | . . . . Melee . | . . . . Ramming 32 | . 8 24 . Kinetic 1592 | . 855 161 576 Thermal . | . . . . Explosive . | . . . . Electromagnetic . | . . . . Impact . | . . . . Slashing . | . . . . Piercing . | . . . . Highest Corruption . | . . . . Average Corruption . | . . . . Corruption Purged . | . . . . Corruption Blocked . | . . . . Overload Shots . | . . . . Overflow Damage . | . . . . Projectiles . | . . . . Explosions . | . . . . Melee . | . . . . Knockbacks 3 | . . 1 2 Impact 1 | . . 1 . Kinetic 2 | . . . 2 Secondary . | . . . . Self-Inflicted Damage . | . . . . Shots . | . . . . Rammed 3 | . . 3 . Targets Rammed 9 | . 2 7 . Kicked 5 | . 2 3 . Crushed 1 | . . 1 . Highest Temperature 21 | . 2 21 . Average Temperature 7 | . 2 9 . Received Heat Transfer 495 | . 273 126 96 Siege Activations . | . . . . Robots Corrupted . | . . . . Combat Hostiles . | . . . . Parts Fried . | . . . . Impact Corruptions . | . . . . Robots Melted . | . . . . Combat Hostiles . | . . . . Parts Melted . | . . . . Heat Transferred . | . . . . Parts Sabotaged . | . . . . Parts Stolen . | . . . . Parts Stripped . | . . . . Power Chain Reactions . | . . . . Missiles Intercepted . | . . . . Alert | -11 -10 -10 -10 ------- Run | Jun Mat Min Sub Peak Influence 190 | . 190 50 . Initial 2 | . . 2 . Average 32 | . 63 6 . Maximum Alert Level . | . . . . Low Security (%) 100 | . 100 100 . Level 1 . | . . . . Level 2 . | . . . . Level 3 . | . . . . Level 4 . | . . . . Level 5 . | . . . . High Security . | . . . . Max Security . | . . . . Squads Dispatched 2 | . 2 . . Investigation 1 | . 1 . . Extermination . | . . . . Reinforcement 1 | . 1 . . Assault . | . . . . Garrison . | . . . . Intercept . | . . . . Searches Triggered . | . . . . Construction Impeded . | . . . . Haulers Reinforced . | . . . . Active Scanning Responses . | . . . . Cargo Convoy Interrupts . | . . . . Stealth | -11 -10 -10 -10 --------- Run | Jun Mat Min Sub Distress Signals 2 | . 2 . . Communications Jammed . | . . . . Distress Signals . | . . . . Times Spotted 31 | . 22 2 7 Peak Tracking Total 5 | . 5 2 2 Tactical Retreats . | . . . . Traps | -11 -10 -10 -10 ------- Run | Jun Mat Min Sub Traps Triggered 3 | . 2 1 . Indirectly . | . . . . Trap Hack Attempts . | . . . . Triggered . | . . . . Disarmed . | . . . . Reprogrammed . | . . . . Reused . | . . . . Traps Extracted . | . . . . Installed . | . . . . Triggered . | . . . . Machines | -11 -10 -10 -10 ---------- Run | Jun Mat Min Sub Machines Disabled . | . . . . Max in Single Turn . | . . . . Machines Repaired . | . . . . Machines Sabotaged . | . . . . Overloaded Fab Kills . | . . . . Hacking | -11 -10 -10 -10 --------- Run | Jun Mat Min Sub Machines Accessed 2 | . 1 1 . Terminals 1 | . 1 . . Fabricators . | . . . . Repair Stations . | . . . . Recycling Units . | . . . . Scanalyzers . | . . . . Garrison Access . | . . . . Total Hacks 7 | . 6 1 . Successful 2 | . 1 1 . Failed 5 | . 5 . . Catastrophic 1 | . 1 . . Database Lockouts . | . . . . Manual 6 | . 6 . . Terminals 6 | . 6 . . Fabricators . | . . . . Repair Stations . | . . . . Recycling Units . | . . . . Scanalyzers . | . . . . Garrison Access . | . . . . Terminal Hacks 1 | . . 1 . Open Door 1 | . . 1 . Fabricator Hacks . | . . . . Repair Station Hacks . | . . . . Recycling Unit Hacks . | . . . . Scanalyzer . | . . . . Garrison Access Hacks . | . . . . Unauthorized Hacks 1 | . 1 . . Terminals 1 | . 1 . . Botnet 1 | . 1 . . Fabricators . | . . . . Repair Stations . | . . . . Recycling Units . | . . . . Scanalyzers . | . . . . Garrison Access . | . . . . Data Cores Recovered . | . . . . Used . | . . . . Hacking Detections 1 | . 1 . . Full Trace Events . | . . . . Feedback Events . | . . . . Feedback Blocked . | . . . . Robot Schematics Acquired . | . . . . Robots Built . | . . . . Authchips . | . . . . Time . | . . . . Total Robot Build Rating . | . . . . Part Schematics Acquired . | . . . . Parts Built . | . . . . Authchips . | . . . . Time . | . . . . Total Part Build Rating . | . . . . Parts Repaired . | . . . . Time . | . . . . Parts Recycled . | . . . . Recycled Matter . | . . . . Retrieved Matter . | . . . . Retrieved Components . | . . . . Parts Scanalyzed . | . . . . Part Schematics Acquired . | . . . . Parts Damaged . | . . . . Bothacking | -11 -10 -10 -10 ------------ Run | Jun Mat Min Sub Used RIF Installer . | . . . . Robots Hacked . | . . . . Non-combat . | . . . . Combat . | . . . . Robot Hacks Applied . | . . . . Relay Couplers Released . | . . . . Fabnet Peak Effective % . | . . . . Robots Rewired . | . . . . Allies Hacked . | . . . . Hacks Repelled . | . . . . Allies | -11 -10 -10 -10 -------- Run | Jun Mat Min Sub Total Allies . | . . . . Largest Group . | . . . . Highest-Rated Group . | . . . . Highest-Rated Ally . | . . . . Total Orders . | . . . . Ally Attacks . | . . . . Total Damage . | . . . . Kills . | . . . . Allies Corrupted . | . . . . Allies Melted . | . . . . Intel | -11 -10 -10 -10 ------- Run | Jun Mat Min Sub Robot Analysis Total . | . . . . Derelict Logs Recovered 1 | . . 1 . Drone Launches . | . . . . Drone Recoveries . | . . . . Exploration | -11 -10 -10 -10 ------------- Run | Jun Mat Min Sub Turns Passed 3123 | . 1106 1351 666 Spaces Moved 1261 | 1 498 532 230 Core . | . . . . Treads 689 | . . 459 230 Legs 572 | 1 498 73 . Wheels . | . . . . Hover . | . . . . Flight . | . . . . Fastest Speed 120 | 120 120 240 240 Average Speed 218 | 120 182 242 240 Slowest Speed 260 | 120 260 260 240 Overloaded Moves . | . . . . Propulsion Burnouts . | . . . . Robots Hopped . | . . . . Cave-ins Triggered . | . . . . Exploration Rate (%) 49 | 2 85 96 13 Regions Visited 3 Branch Regions 2 Pre-discovered Areas 1 | . . 1 . Known Exits Taken . | . . . . Unknown Exits Taken 3 | 1 1 1 . Scrap Searched 1 | . . 1 . Spaces Dug . | . . . . Terrain Destroyed . | . . . . Melee . | . . . . Projectile . | . . . . AOE . | . . . . Terrain Rammed . | . . . . Walls Destroyed . | . . . . Machines Disabled . | . . . . Actions | -11 -10 -10 -10 --------- Run | Jun Mat Min Sub Total 1453 | . 599 564 290 Wait 52 | . 31 1 20 Move 1258 | . 497 531 230 Hop . | . . . . Pick Up 21 | . 11 8 2 Fast Attach 3 | . 2 . 1 Attach 10 | . 3 4 3 Detach . | . . . . Swap 2 | . . 1 1 Drop 6 | . 4 2 . Fire 92 | . 49 10 33 Melee . | . . . . Ram . | . . . . Kick 5 | . 2 3 . Crush 4 | . . 4 . Escape Stasis . | . . . . Rewire . | . . . . Trap . | . . . . Miscellaneous . | . . . . Route ------- -11/Junkyard -10/Materials (discovered 5 exits: [*Mat x3] / *Min x2) -10/Mines (discovered 3 exits: [*Mat x2] / [*Sub]) -10/Subcaves History --------- Turn | Location | Event 1 | -11/Junkyard | Discovered new exit (range 0) 1 | -11/Junkyard | Entered Materials 204 | -10/Materials | Discovered new exit (range 14) 285 | -10/Materials | Discovered new exit (range 8) 313 | -10/Materials | Build established: Mutant 393 | -10/Materials | Discovered new exit (range 12) 582 | -10/Materials | Discovered new exit (range 16) 972 | -10/Materials | Discovered new exit (range 15) 1107 | -10/Materials | Entered Mines 1116 | -10/Mines | Met a Derelict who couldn't figure out how to use a Trap Extractor 1126 | -10/Mines | Core integrity fell below 50% 1271 | -10/Mines | Learned location of Mines (-9) 1392 | -10/Mines | Discovered new exit (range 6) 1505 | -10/Mines | Discovered new exit (range 5) 1975 | -10/Mines | Discovered new exit (range 12) 2458 | -10/Mines | Entered Subcaves 2644 | -10/Subcaves | Ambushed by Subdwellers from Twisted Machinery 2659 | -10/Subcaves | Core integrity fell below 20% 3004 | -10/Subcaves | Build established: Scavenger-Mutant 3124 | -10/Subcaves | Destroyed by G-47 Trooper with Particle Gun Last Messages --------------- 02494_ S5-IRG(R) destroyed. 02497_ Acquired 33 matter. 02501_ Acquired 1 matter. 02660_ 2Z-V41(R) suffers critical hit (Destroy). 02660_ 2Z-V41(R) destroyed. 02668_ Deuterium Engine destroyed. 02668_ JR-1AW(R) destroyed. 02674_ Acquired 27 matter. 02681_ Acquired Sub. Power Source. 02685_ Acquired Sub. Machine Gun. 02753_ Lgt. Cannon destroyed. 02756_ 7G-65V(R) destroyed. 02761_ Acquired 27 matter. 02766_ Acquired Sub. Monowheel. 02881_ 9G-3UE(z): "She is not going to be happy we haven't found any suitable candidates yet." 02995_ Sub. Power Source shoots sparks and powers down. 03114_ Destroyed Heat Sink. 03117_ G-34 Mercenary destroyed. 03117_ Switching to secondary target: G-47 Trooper. Map ----- +----------------------------------------------------+ | ??????????????????????????????????### ##?????? | | ??????????????????????????????????## ##?????? | | ?????????????????????????????????### ##?????? | | ????????????????????????????????#### ##?????? | | ????????????????????????????????### ##?????? | | ????????????????????????????????## ###?????? | | ????????????????????????????????## "###?????? | | ????????????????????????????????##"" """"###?????? | | ????????????????????????????????##"" """ ###?????? | | ???????????????????????????????### ##?????? | | ???????????????????????????????### "##?????? | | ???????????????????????????????## ##?????? | | ???????????????????????????????## ###?????? | | ?????????????????????????????#### ###?????? | | ????????????????????????????#####" ##?????? | | ????????????????????????????### " """"""###?????? | | ???????????????????????????### """""""###?????? | | ????????????????????????###### """""""###?????? | | ???????????????????????###### """"""""##?????? | | ???????????????????????### ### """"""""##?????? | | ???????????????????????## ## """""##?????? | | ???????????????????????## ## """"" ###?????? | | ???????????????????????## "" " ###?????? | | ??????????????????????### ### ###?????? | | ??????????????????????### ### ##?????? | | ??????????????????????## @ ### ##?????? | | ?????????????###???? ##[ ##### ###?????? | | ?????????????###???? ####%g###### ####?????? | | ?????????????## # # ###### ###??????? | | ?????????????## ####?## ####?????? | | ?????????????### ""##??### ###?????? | | ???????????## ## #""###??#### ##?????? | | ???????????## ## ###"###???### ##?????? | | ???????????## ? #" ##"""????### # ###?????? | | ???????????###?? ""?? ?????### ####?????? | | ???????????###?? ##???# ?????## ## ####?????? | | ???????????????? #"???## ?????"## ###?????? | | ??????????????????????### ###??"### ##?????? | | ?????????????????????????########" ###?????? | | ?????????????????????????## "#### ####?????? | | ?????????????????????????## "" ###??????? | | ????????????????????????? ##" ###??????? | | ????????????????????????? ##### #### ##??????? | | ?????????????????????????? ########### ###?????? | | ?????????????????????????????######### ##?????? | | ????????????????????????????????????## ####?????? | | ????????????????????????????????????## ####?????? | | ?????????????????????????????????????? ##??????? | | ?????????????????????????????????????? ##??????? | | ?????????????????????????????????????? ##??????? | +----------------------------------------------------+ Best States ------------- Heat Dissipation 25 Energy Generation 15 Energy Capacity 275 Matter Stores 300 Matter Capacity 300 Sight Range 16 Terrain Scan Density 10 Evasion (%) 55 Recoil Reduction 2 Item Schematics ----------------- None Robot Schematics ------------------ None Fabricated ------------ Nothing Alien Tech Used ----------------- None Achievements -------------- None Challenges ------------ None Game ------ Seed HackingSystemMinigun Manual? 0 Play Time 00:08:53 Cumulative 372.5 hours Start 2023.10.08 @ 14:29:15 End 2023.10.08 @ 14:36:55 Sessions 1 Manual Loads 0 Difficulty Rogue Special Mode None Game No. 550 Rogue 523 Adventurer 4 Explorer 23 Win Type - Total 20 Types 14/0/2/2/1/0/0/1/0 Lore% 81 Gallery% 91 Achievement% 83 Wizard Run 0 Options --------- ASCII 0 Keyboard 1 Movement Numpad Keybinds 0 Fullscreen 1 Font 18/SmallcapsGlow Map View 76x50 Tactical HUD 1 Map Filters NONE Filters NONE Steam 1 RUN: 0f5bd164-662e-46a8-80eb-ce0c9ed54e89